[Event "Titled Tuesday Blitz January 10 Early 2023"]
[White "Postny, Evgeny"]
[Black "Sourath Biswas"]
[WhiteFideId "2804344"]
[BlackFideId "35091484"]
[WhiteElo "2549"]
[BlackElo "2281"]
[Result "1/2-1/2"]
[Round "11"]
[TimeControl "180+2"]
[Date "2023.01.10"]
[WhiteClock "0:00:03"]
[BlackClock "0:00:07"]

1. e4 {[%clk 0:02:55]}  c6 {[%clk 0:03:00]} 2. d4 {[%clk 0:02:54]}  d5 {[%clk 0:03:00]} 3. Nd2 {[%clk 0:02:54]}  dxe4 {[%clk 0:02:57]} 4. Nxe4 {[%clk 0:02:55]}  Bf5 {[%clk 0:02:56]} 5. Ng3 {[%clk 0:02:55]}  Bg6 {[%clk 0:02:57]} 6. h4 {[%clk 0:02:54]}  h6 {[%clk 0:02:57]} 7. Nf3 {[%clk 0:02:55]}  Nd7 {[%clk 0:02:57]} 8. h5 {[%clk 0:02:51]}  Bh7 {[%clk 0:02:57]} 9. Bd3 {[%clk 0:02:52]}  Bxd3 {[%clk 0:02:58]} 10. Qxd3 {[%clk 0:02:53]}  e6 {[%clk 0:02:58]} 11. Bd2 {[%clk 0:02:53]}  Ngf6 {[%clk 0:02:58]} 12. O-O-O {[%clk 0:02:52]}  Be7 {[%clk 0:02:59]} 13. Ne4 {[%clk 0:02:50]}  Nxe4 {[%clk 0:02:58]} 14. Qxe4 {[%clk 0:02:50]}  Nf6 {[%clk 0:02:59]} 15. Qe2 {[%clk 0:02:51]}  Qd5 {[%clk 0:03:00]} 16. c4 {[%clk 0:02:49]}  Qe4 {[%clk 0:02:58]} 17. Qxe4 {[%clk 0:02:49]}  Nxe4 {[%clk 0:02:59]} 18. Be3 {[%clk 0:02:50]}  f5 {[%clk 0:02:59]} 19. Nd2 {[%clk 0:02:37]}  Nf6 {[%clk 0:02:50]} 20. Bf4 {[%clk 0:02:34]}  O-O-O {[%clk 0:02:44]} 21. Nf3 {[%clk 0:02:24]}  Ne4 {[%clk 0:02:44]} 22. Rhf1 {[%clk 0:02:20]}  Bf6 {[%clk 0:02:40]} 23. Be5 {[%clk 0:02:19]}  Bg5+ {[%clk 0:02:37]} 24. Kc2 {[%clk 0:02:18]}  Rd7 {[%clk 0:02:37]} 25. Nxg5 {[%clk 0:02:05]}  hxg5 {[%clk 0:02:37]} 26. f3 {[%clk 0:01:58]}  Nf6 {[%clk 0:02:36]} 27. Bxf6 {[%clk 0:01:58]}  gxf6 {[%clk 0:02:37]} 28. Rfe1 {[%clk 0:01:43]}  Rxh5 {[%clk 0:02:30]} 29. Rxe6 {[%clk 0:01:42]}  Rh2 {[%clk 0:02:27]} 30. Rd2 {[%clk 0:01:42]}  Rf7 {[%clk 0:02:11]} 31. d5 {[%clk 0:01:32]}  cxd5 {[%clk 0:02:08]} 32. cxd5 {[%clk 0:01:33]}  Rh4 {[%clk 0:02:04]} 33. Kc3 {[%clk 0:01:29]}  Kd7 {[%clk 0:01:36]} 34. b3 {[%clk 0:01:24]}  g4 {[%clk 0:01:12]} 35. a4 {[%clk 0:01:15]}  Rh1 {[%clk 0:01:02]} 36. a5 {[%clk 0:01:05]}  Ra1 {[%clk 0:00:54]} 37. Kb4 {[%clk 0:01:04]}  Rf1 {[%clk 0:00:37]} 38. Rd3 {[%clk 0:01:02]}  Rf2 {[%clk 0:00:34]} 39. fxg4 {[%clk 0:01:01]}  Rf4+ {[%clk 0:00:31]} 40. Kc5 {[%clk 0:00:58]}  fxg4 {[%clk 0:00:28]} 41. b4 {[%clk 0:00:54]}  Rf8 {[%clk 0:00:24]} 42. Rd6+ {[%clk 0:00:52]}  Kc7 {[%clk 0:00:23]} 43. Re3 {[%clk 0:00:32]}  Rf7 {[%clk 0:00:13]} 44. b5 {[%clk 0:00:27]}  Rc4+ {[%clk 0:00:08]} 45. Kxc4 {[%clk 0:00:27]}  Kxd6 {[%clk 0:00:09]} 46. Re6+ {[%clk 0:00:28]}  Kd7 {[%clk 0:00:10]} 47. a6 {[%clk 0:00:23]}  b6 {[%clk 0:00:07]} 48. Rc6 {[%clk 0:00:22]}  f5 {[%clk 0:00:07]} 49. d6 {[%clk 0:00:23]}  Kd8 {[%clk 0:00:07]} 50. Kd5 {[%clk 0:00:21]}  f4 {[%clk 0:00:04]} 51. Ke6 {[%clk 0:00:21]}  Rh7 {[%clk 0:00:04]} 52. Rc4 {[%clk 0:00:16]}  Rh6+ {[%clk 0:00:03]} 53. Kd5 {[%clk 0:00:16]}  f3 {[%clk 0:00:03]} 54. gxf3 {[%clk 0:00:15]}  gxf3 {[%clk 0:00:03]} 55. Rf4 {[%clk 0:00:16]}  Rh5+ {[%clk 0:00:04]} 56. Ke6 {[%clk 0:00:15]}  Rh6+ {[%clk 0:00:04]} 57. Kd5 {[%clk 0:00:14]}  Rh5+ {[%clk 0:00:04]} 58. Kc6 {[%clk 0:00:14]}  Rc5+ {[%clk 0:00:04]} 59. Kb7 {[%clk 0:00:14]}  Kd7 {[%clk 0:00:04]} 60. Rxf3 {[%clk 0:00:12]}  Kxd6 {[%clk 0:00:04]} 61. Kxa7 {[%clk 0:00:11]}  Rxb5 {[%clk 0:00:04]} 62. Kb7 {[%clk 0:00:11]}  Rh5 {[%clk 0:00:03]} 63. Rd3+ {[%clk 0:00:10]}  Kc5 {[%clk 0:00:03]} 64. a7 {[%clk 0:00:10]}  Rh7+ {[%clk 0:00:04]} 65. Kb8 {[%clk 0:00:10]}  Rh8+ {[%clk 0:00:03]} 66. Kc7 {[%clk 0:00:10]}  Rh7+ {[%clk 0:00:02]} 67. Rd7 {[%clk 0:00:10]}  Rh8 {[%clk 0:00:03]} 68. Kb7 {[%clk 0:00:08]}  b5 {[%clk 0:00:02]} 69. Rc7+ {[%clk 0:00:08]}  Kb4 {[%clk 0:00:02]} 70. Rc8 {[%clk 0:00:05]}  Rh7+ {[%clk 0:00:02]} 71. Kb6 {[%clk 0:00:05]}  Rxa7 {[%clk 0:00:02]} 72. Kxa7 {[%clk 0:00:06]}  Ka3 {[%clk 0:00:03]} 73. Ka6 {[%clk 0:00:04]}  b4 {[%clk 0:00:04]} 74. Ka5 {[%clk 0:00:04]}  b3 {[%clk 0:00:05]} 75. Rc3 {[%clk 0:00:04]}  Ka2 {[%clk 0:00:05]} 76. Ka4 {[%clk 0:00:04]}  b2 {[%clk 0:00:06]} 77. Rc2 {[%clk 0:00:04]}  Ka1 {[%clk 0:00:07]} 78. Rxb2 {[%clk 0:00:03]}  Kxb2 {[%clk 0:00:07]} 1/2-1/2


[Site "https://www.chess.com"]

[Event "Titled Tuesday Blitz January 10 Early 2023"]
[White "Aradhya, Garg"]
[Black "Yelisieiev, Yevhenii"]
[WhiteFideId "25006746"]
[BlackFideId "14139642"]
[WhiteElo "2284"]
[BlackElo "2418"]
[Result "1-0"]
[Round "11"]
[TimeControl "180+2"]
[Date "2023.01.10"]
[WhiteClock "0:00:34"]
[BlackClock "0:00:01"]

1. d4 {[%clk 0:03:00]}  d5 {[%clk 0:02:59]} 2. c4 {[%clk 0:03:00]}  e6 {[%clk 0:02:59]} 3. Nf3 {[%clk 0:02:59]}  Nf6 {[%clk 0:02:59]} 4. e3 {[%clk 0:02:59]}  Be7 {[%clk 0:02:53]} 5. Nc3 {[%clk 0:02:52]}  O-O {[%clk 0:02:52]} 6. b3 {[%clk 0:02:52]}  c5 {[%clk 0:02:47]} 7. cxd5 {[%clk 0:02:50]}  cxd4 {[%clk 0:02:41]} 8. Qxd4 {[%clk 0:02:46]}  exd5 {[%clk 0:02:37]} 9. Bb2 {[%clk 0:02:36]}  Nc6 {[%clk 0:02:30]} 10. Qd2 {[%clk 0:02:36]}  Bb4 {[%clk 0:02:04]} 11. a3 {[%clk 0:02:21]}  Ne4 {[%clk 0:01:46]} 12. Qc1 {[%clk 0:02:21]}  Bxc3+ {[%clk 0:01:28]} 13. Bxc3 {[%clk 0:02:21]}  Nxc3 {[%clk 0:01:27]} 14. Qxc3 {[%clk 0:02:20]}  Bg4 {[%clk 0:01:27]} 15. Be2 {[%clk 0:01:33]}  Bxf3 {[%clk 0:01:26]} 16. Bxf3 {[%clk 0:01:34]}  d4 {[%clk 0:01:26]} 17. exd4 {[%clk 0:01:33]}  Re8+ {[%clk 0:01:25]} 18. Kf1 {[%clk 0:01:31]}  Rc8 {[%clk 0:00:39]} 19. Rd1 {[%clk 0:01:20]}  Qb6 {[%clk 0:00:21]} 20. g3 {[%clk 0:01:12]}  Ne5 {[%clk 0:00:17]} 21. Qe3 {[%clk 0:01:12]}  Nc4 {[%clk 0:00:13]} 22. Qf4 {[%clk 0:00:59]}  Nb2 {[%clk 0:00:10]} 23. Rd2 {[%clk 0:00:44]}  Rc1+ {[%clk 0:00:06]} 24. Kg2 {[%clk 0:00:44]}  Rxh1 {[%clk 0:00:06]} 25. Kxh1 {[%clk 0:00:44]}  Qxb3 {[%clk 0:00:06]} 26. Kg2 {[%clk 0:00:41]}  Nc4 {[%clk 0:00:06]} 27. Re2 {[%clk 0:00:39]}  Rf8 {[%clk 0:00:01]} 28. Re7 {[%clk 0:00:34]} 1-0


[Site "https://www.chess.com"]

[Event "Titled Tuesday Blitz January 10 Early 2023"]
[White "Iskusnyh, Sergei"]
[Black "Seo, Jung Min"]
[WhiteFideId "4120027"]
[BlackFideId "1734687"]
[WhiteElo "2440"]
[BlackElo "2494"]
[Result "1-0"]
[Round "11"]
[TimeControl "180+2"]
[Date "2023.01.10"]
[WhiteClock "0:00:33"]
[BlackClock "0:00:37"]

1. d4 {[%clk 0:03:00]}  Nf6 {[%clk 0:02:59]} 2. c4 {[%clk 0:02:57]}  d6 {[%clk 0:03:00]} 3. Nf3 {[%clk 0:02:56]}  g6 {[%clk 0:03:00]} 4. g3 {[%clk 0:02:54]}  Bg7 {[%clk 0:03:00]} 5. Bg2 {[%clk 0:02:55]}  O-O {[%clk 0:03:00]} 6. Nc3 {[%clk 0:02:55]}  Nbd7 {[%clk 0:03:00]} 7. O-O {[%clk 0:02:55]}  e5 {[%clk 0:03:00]} 8. e4 {[%clk 0:02:55]}  Re8 {[%clk 0:03:00]} 9. h3 {[%clk 0:02:53]}  c6 {[%clk 0:02:57]} 10. Be3 {[%clk 0:02:47]}  Qc7 {[%clk 0:02:56]} 11. Qc2 {[%clk 0:02:46]}  exd4 {[%clk 0:02:55]} 12. Nxd4 {[%clk 0:02:46]}  Nc5 {[%clk 0:02:55]} 13. Rad1 {[%clk 0:02:34]}  a5 {[%clk 0:02:55]} 14. b3 {[%clk 0:02:33]}  Nfd7 {[%clk 0:02:51]} 15. Rfe1 {[%clk 0:02:26]}  Nf8 {[%clk 0:02:50]} 16. f4 {[%clk 0:02:25]}  Bd7 {[%clk 0:02:50]} 17. Bf2 {[%clk 0:02:25]}  Rad8 {[%clk 0:02:50]} 18. Qd2 {[%clk 0:02:21]}  Bc8 {[%clk 0:02:50]} 19. Nde2 {[%clk 0:02:13]}  Nfe6 {[%clk 0:02:49]} 20. Qc2 {[%clk 0:02:11]}  Qb6 {[%clk 0:02:42]} 21. Na4 {[%clk 0:02:06]}  Qc7 {[%clk 0:02:41]} 22. Nec3 {[%clk 0:02:03]}  Nxa4 {[%clk 0:02:16]} 23. Nxa4 {[%clk 0:02:02]}  c5 {[%clk 0:02:17]} 24. Nc3 {[%clk 0:01:56]}  Nd4 {[%clk 0:02:17]} 25. Qc1 {[%clk 0:01:51]}  Be6 {[%clk 0:02:16]} 26. Kh2 {[%clk 0:01:49]}  h5 {[%clk 0:02:12]} 27. Bxd4 {[%clk 0:01:47]}  cxd4 {[%clk 0:02:11]} 28. Nb5 {[%clk 0:01:47]}  Qc5 {[%clk 0:02:11]} 29. Qd2 {[%clk 0:01:41]}  a4 {[%clk 0:02:11]} 30. Nxd4 {[%clk 0:01:40]}  Bd7 {[%clk 0:02:11]} 31. Nc2 {[%clk 0:01:33]}  axb3 {[%clk 0:02:11]} 32. axb3 {[%clk 0:01:33]}  Bc6 {[%clk 0:02:09]} 33. h4 {[%clk 0:01:27]}  Ra8 {[%clk 0:01:57]} 34. Nb4 {[%clk 0:01:22]}  Rad8 {[%clk 0:01:50]} 35. Nd5 {[%clk 0:01:19]}  b5 {[%clk 0:01:44]} 36. cxb5 {[%clk 0:01:17]}  Bxb5 {[%clk 0:01:43]} 37. Rc1 {[%clk 0:01:16]}  Qa3 {[%clk 0:01:27]} 38. Nc7 {[%clk 0:01:06]}  Qxb3 {[%clk 0:01:15]} 39. Rb1 {[%clk 0:01:00]}  Bc3 {[%clk 0:01:03]} 40. Qe3 {[%clk 0:00:49]}  Qc4 {[%clk 0:01:01]} 41. Nxe8 {[%clk 0:00:42]}  Bxe1 {[%clk 0:00:55]} 42. Nf6+ {[%clk 0:00:40]}  Kg7 {[%clk 0:00:55]} 43. Nxh5+ {[%clk 0:00:37]}  gxh5 {[%clk 0:00:54]} 44. Qxe1 {[%clk 0:00:37]}  Bd7 {[%clk 0:00:50]} 45. f5 {[%clk 0:00:36]}  Qd4 {[%clk 0:00:48]} 46. Rd1 {[%clk 0:00:34]}  Qe5 {[%clk 0:00:49]} 47. Qd2 {[%clk 0:00:33]}  Bc6 {[%clk 0:00:38]} 48. Qg5+ {[%clk 0:00:33]}  Kf8 {[%clk 0:00:37]} 49. Qxd8+ {[%clk 0:00:33]} 1-0


[Site "https://www.chess.com"]

[Event "Titled Tuesday Blitz January 10 Early 2023"]
[White "Barrientos, Sergio E"]
[Black "Garakov, Mikhael"]
[WhiteFideId "4401824"]
[BlackFideId "4169034"]
[WhiteElo "2479"]
[BlackElo "2447"]
[Result "1-0"]
[Round "11"]
[TimeControl "180+2"]
[Date "2023.01.10"]
[WhiteClock "0:00:43"]
[BlackClock "0:00:03"]

1. d4 {[%clk 0:02:53]}  Nf6 {[%clk 0:02:58]} 2. Nf3 {[%clk 0:02:51]}  g6 {[%clk 0:02:57]} 3. g3 {[%clk 0:02:51]}  c5 {[%clk 0:02:54]} 4. Bg2 {[%clk 0:02:52]}  cxd4 {[%clk 0:02:53]} 5. Nxd4 {[%clk 0:02:53]}  Bg7 {[%clk 0:02:54]} 6. O-O {[%clk 0:02:53]}  O-O {[%clk 0:02:54]} 7. c4 {[%clk 0:02:53]}  Nc6 {[%clk 0:02:54]} 8. Nc3 {[%clk 0:02:53]}  a6 {[%clk 0:02:44]} 9. Nb3 {[%clk 0:02:39]}  b6 {[%clk 0:02:37]} 10. Be3 {[%clk 0:02:34]}  Rb8 {[%clk 0:02:34]} 11. h3 {[%clk 0:02:33]}  Ne5 {[%clk 0:02:16]} 12. Nd2 {[%clk 0:02:30]}  b5 {[%clk 0:02:09]} 13. Ba7 {[%clk 0:02:21]}  Rb7 {[%clk 0:01:47]} 14. Bxb7 {[%clk 0:02:20]}  Bxb7 {[%clk 0:01:48]} 15. cxb5 {[%clk 0:02:17]}  Qa8 {[%clk 0:01:43]} 16. Bd4 {[%clk 0:02:13]}  Nh5 {[%clk 0:01:34]} 17. bxa6 {[%clk 0:02:08]}  Bg2 {[%clk 0:01:33]} 18. Kh2 {[%clk 0:01:52]}  Bxf1 {[%clk 0:01:29]} 19. Qxf1 {[%clk 0:01:51]}  Qxa6 {[%clk 0:01:26]} 20. Rd1 {[%clk 0:01:40]}  Rc8 {[%clk 0:01:16]} 21. f4 {[%clk 0:01:28]}  Nc6 {[%clk 0:00:43]} 22. Bxg7 {[%clk 0:01:27]}  Nxg7 {[%clk 0:00:39]} 23. e3 {[%clk 0:01:09]}  Qa8 {[%clk 0:00:29]} 24. Qf3 {[%clk 0:01:05]}  Qb8 {[%clk 0:00:21]} 25. Nb3 {[%clk 0:01:00]}  d6 {[%clk 0:00:16]} 26. Nd5 {[%clk 0:00:57]}  Kf8 {[%clk 0:00:10]} 27. Rc1 {[%clk 0:00:56]}  Nf5 {[%clk 0:00:07]} 28. Qe4 {[%clk 0:00:51]}  e6 {[%clk 0:00:06]} 29. Nf6 {[%clk 0:00:50]}  d5 {[%clk 0:00:07]} 30. Nd7+ {[%clk 0:00:48]}  Kg7 {[%clk 0:00:07]} 31. Nxb8 {[%clk 0:00:48]}  dxe4 {[%clk 0:00:05]} 32. Nxc6 {[%clk 0:00:48]}  Nxe3 {[%clk 0:00:05]} 33. Ncd4 {[%clk 0:00:48]}  Rd8 {[%clk 0:00:05]} 34. Re1 {[%clk 0:00:46]}  Nc4 {[%clk 0:00:04]} 35. Rxe4 {[%clk 0:00:45]}  Nxb2 {[%clk 0:00:04]} 36. Re2 {[%clk 0:00:43]}  Na4 {[%clk 0:00:03]} 37. Rd2 {[%clk 0:00:43]}  Nc3 {[%clk 0:00:03]} 38. Nxe6+ {[%clk 0:00:43]} 1-0


[Site "https://www.chess.com"]

[Event "Titled Tuesday Blitz January 10 Early 2023"]
[White "Sokolovsky, Yahli"]
[Black "Parpiev, Isaak"]
[WhiteFideId "2820242"]
[BlackFideId "34281576"]
[WhiteElo "2461"]
[BlackElo "2167"]
[Result "1-0"]
[Round "11"]
[TimeControl "180+2"]
[Date "2023.01.10"]
[WhiteClock "0:00:07"]
[BlackClock "0:00:03"]

1. b3 {[%clk 0:03:00]}  Nf6 {[%clk 0:02:58]} 2. Bb2 {[%clk 0:03:01]}  d5 {[%clk 0:02:58]} 3. e3 {[%clk 0:03:00]}  e6 {[%clk 0:02:58]} 4. d4 {[%clk 0:03:00]}  Bd6 {[%clk 0:02:56]} 5. Nf3 {[%clk 0:03:01]}  O-O {[%clk 0:02:56]} 6. Bd3 {[%clk 0:03:02]}  c5 {[%clk 0:02:55]} 7. Nbd2 {[%clk 0:03:02]}  Nc6 {[%clk 0:02:55]} 8. a3 {[%clk 0:03:02]}  cxd4 {[%clk 0:02:54]} 9. exd4 {[%clk 0:03:02]}  b6 {[%clk 0:02:53]} 10. O-O {[%clk 0:03:02]}  Bb7 {[%clk 0:02:54]} 11. Ne5 {[%clk 0:03:02]}  Qc7 {[%clk 0:02:51]} 12. f4 {[%clk 0:02:59]}  Ne7 {[%clk 0:02:50]} 13. Qf3 {[%clk 0:02:54]}  Ne8 {[%clk 0:02:20]} 14. Qh3 {[%clk 0:02:50]}  g6 {[%clk 0:02:20]} 15. Ndf3 {[%clk 0:02:47]}  f6 {[%clk 0:02:08]} 16. Qxe6+ {[%clk 0:02:17]}  Kg7 {[%clk 0:02:04]} 17. Nd7 {[%clk 0:02:10]}  Rf7 {[%clk 0:01:41]} 18. Nfe5 {[%clk 0:02:10]}  fxe5 {[%clk 0:01:35]} 19. fxe5 {[%clk 0:02:08]}  Nf5 {[%clk 0:01:18]} 20. Bxf5 {[%clk 0:01:22]}  gxf5 {[%clk 0:01:08]} 21. Nf6 {[%clk 0:01:22]}  Nxf6 {[%clk 0:01:02]} 22. Rxf5 {[%clk 0:01:22]}  Re8 {[%clk 0:00:54]} 23. Rg5+ {[%clk 0:01:03]}  Kh8 {[%clk 0:00:48]} 24. exd6 {[%clk 0:00:56]}  Rxe6 {[%clk 0:00:39]} 25. dxc7 {[%clk 0:00:57]}  Rxc7 {[%clk 0:00:40]} 26. c4 {[%clk 0:00:57]}  Rg7 {[%clk 0:00:30]} 27. Rf5 {[%clk 0:00:27]}  Kg8 {[%clk 0:00:28]} 28. Raf1 {[%clk 0:00:26]}  Rg6 {[%clk 0:00:25]} 29. R5f2 {[%clk 0:00:21]}  h5 {[%clk 0:00:14]} 30. h3 {[%clk 0:00:21]}  h4 {[%clk 0:00:07]} 31. a4 {[%clk 0:00:22]}  a5 {[%clk 0:00:06]} 32. c5 {[%clk 0:00:22]}  Kh7 {[%clk 0:00:03]} 33. Ba3 {[%clk 0:00:20]}  Kg8 {[%clk 0:00:02]} 34. cxb6 {[%clk 0:00:21]}  Rxb6 {[%clk 0:00:02]} 35. Bc5 {[%clk 0:00:21]}  Re6 {[%clk 0:00:02]} 36. b4 {[%clk 0:00:21]}  axb4 {[%clk 0:00:02]} 37. Bxb4 {[%clk 0:00:22]}  Ba6 {[%clk 0:00:03]} 38. Rc1 {[%clk 0:00:21]}  Bc4 {[%clk 0:00:03]} 39. Bc5 {[%clk 0:00:17]}  Ne4 {[%clk 0:00:03]} 40. Rb2 {[%clk 0:00:17]}  Kh7 {[%clk 0:00:03]} 41. a5 {[%clk 0:00:17]}  Ng3 {[%clk 0:00:03]} 42. Rb7+ {[%clk 0:00:13]}  Kh6 {[%clk 0:00:03]} 43. Bf8+ {[%clk 0:00:13]}  Kh5 {[%clk 0:00:03]} 44. Rh7+ {[%clk 0:00:13]}  Kg5 {[%clk 0:00:03]} 45. Be7+ {[%clk 0:00:14]}  Kf5 {[%clk 0:00:04]} 46. Kh2 {[%clk 0:00:09]}  Nf1+ {[%clk 0:00:04]} 47. Kh1 {[%clk 0:00:09]}  Ng3+ {[%clk 0:00:04]} 48. Kh2 {[%clk 0:00:10]}  Ke4 {[%clk 0:00:04]} 49. Rxh4+ {[%clk 0:00:09]}  Kd3 {[%clk 0:00:03]} 50. Bb4 {[%clk 0:00:07]}  Ne2 {[%clk 0:00:02]} 51. Rd1+ {[%clk 0:00:07]}  Kc2 {[%clk 0:00:02]} 52. Rd2+ {[%clk 0:00:08]}  Kb3 {[%clk 0:00:03]} 53. Bc5 {[%clk 0:00:08]}  Re4 {[%clk 0:00:02]} 54. Rxe4 {[%clk 0:00:07]}  dxe4 {[%clk 0:00:01]} 55. d5 {[%clk 0:00:08]}  Bxd5 {[%clk 0:00:02]} 56. Rxd5 {[%clk 0:00:08]}  Nc3 {[%clk 0:00:02]} 57. Rd2 {[%clk 0:00:08]}  Kc4 {[%clk 0:00:02]} 58. Be3 {[%clk 0:00:08]}  Nd5 {[%clk 0:00:02]} 59. Rd4+ {[%clk 0:00:08]}  Kc5 {[%clk 0:00:02]} 60. Rxe4+ {[%clk 0:00:07]}  Kc6 {[%clk 0:00:02]} 61. Bf2 {[%clk 0:00:07]}  Ne3 {[%clk 0:00:03]} 62. Bxe3 {[%clk 0:00:07]} 1-0


[Site "https://www.chess.com"]

[Event "Titled Tuesday Blitz January 10 Early 2023"]
[White "Dehtiarov, Roman"]
[Black "Florescu, Codrut-Constantin"]
[WhiteFideId "14186640"]
[BlackFideId "1202200"]
[WhiteElo "2289"]
[BlackElo "2259"]
[Result "1-0"]
[Round "11"]
[TimeControl "180+2"]
[Date "2023.01.10"]
[WhiteClock "0:02:19"]
[BlackClock "0:02:12"]

1. e4 {[%clk 0:02:35]}  c5 {[%clk 0:02:59]} 2. Nc3 {[%clk 0:02:35]}  e6 {[%clk 0:02:59]} 3. f4 {[%clk 0:02:35]}  a6 {[%clk 0:02:57]} 4. Nf3 {[%clk 0:02:36]}  b5 {[%clk 0:02:55]} 5. d3 {[%clk 0:02:35]}  Bb7 {[%clk 0:02:56]} 6. g3 {[%clk 0:02:35]}  d6 {[%clk 0:02:53]} 7. Bg2 {[%clk 0:02:32]}  Nc6 {[%clk 0:02:53]} 8. O-O {[%clk 0:02:31]}  Nf6 {[%clk 0:02:54]} 9. h3 {[%clk 0:02:31]}  h5 {[%clk 0:02:52]} 10. Be3 {[%clk 0:02:29]}  b4 {[%clk 0:02:51]} 11. Ne2 {[%clk 0:02:28]}  d5 {[%clk 0:02:48]} 12. e5 {[%clk 0:02:28]}  Nd7 {[%clk 0:02:48]} 13. d4 {[%clk 0:02:26]}  a5 {[%clk 0:02:37]} 14. f5 {[%clk 0:02:25]}  exf5 {[%clk 0:02:36]} 15. c3 {[%clk 0:02:23]}  bxc3 {[%clk 0:02:29]} 16. bxc3 {[%clk 0:02:24]}  cxd4 {[%clk 0:02:29]} 17. cxd4 {[%clk 0:02:24]}  g6 {[%clk 0:02:25]} 18. Nf4 {[%clk 0:02:23]}  Nb4 {[%clk 0:02:14]} 19. a3 {[%clk 0:02:22]}  Na6 {[%clk 0:02:14]} 20. Rb1 {[%clk 0:02:19]}  Bc6 {[%clk 0:02:13]} 21. e6 {[%clk 0:02:20]}  Nf6 {[%clk 0:02:13]} 22. exf7+ {[%clk 0:02:18]}  Kxf7 {[%clk 0:02:12]} 23. Ne5+ {[%clk 0:02:19]}  Kg7 {[%clk 0:02:12]} 24. Ne6+ {[%clk 0:02:19]} 1-0


[Site "https://www.chess.com"]

[Event "Titled Tuesday Blitz January 10 Early 2023"]
[White "Jovic, Stanoje"]
[Black "Barria Zuniga, Daniel"]
[WhiteFideId "905020"]
[BlackFideId "3400816"]
[WhiteElo "2075"]
[BlackElo "2341"]
[Result "0-1"]
[Round "11"]
[TimeControl "180+2"]
[Date "2023.01.10"]
[WhiteClock "0:00:02"]
[BlackClock "0:01:08"]

1. c4 {[%clk 0:02:58]}  e6 {[%clk 0:02:57]} 2. g3 {[%clk 0:02:58]}  g6 {[%clk 0:02:55]} 3. Bg2 {[%clk 0:02:58]}  Bg7 {[%clk 0:02:55]} 4. Nf3 {[%clk 0:02:58]}  Ne7 {[%clk 0:02:55]} 5. O-O {[%clk 0:02:58]}  d5 {[%clk 0:02:56]} 6. d4 {[%clk 0:02:53]}  O-O {[%clk 0:02:56]} 7. Nc3 {[%clk 0:02:52]}  Nbc6 {[%clk 0:02:56]} 8. cxd5 {[%clk 0:02:42]}  exd5 {[%clk 0:02:57]} 9. Bg5 {[%clk 0:02:39]}  h6 {[%clk 0:02:54]} 10. Bf4 {[%clk 0:02:39]}  g5 {[%clk 0:02:51]} 11. Bc1 {[%clk 0:02:33]}  Nf5 {[%clk 0:02:50]} 12. e3 {[%clk 0:02:32]}  Nce7 {[%clk 0:02:48]} 13. Ne5 {[%clk 0:02:29]}  c6 {[%clk 0:02:45]} 14. f4 {[%clk 0:02:27]}  f6 {[%clk 0:02:43]} 15. Nd3 {[%clk 0:02:15]}  Nd6 {[%clk 0:02:42]} 16. e4 {[%clk 0:02:07]}  dxe4 {[%clk 0:02:40]} 17. Nxe4 {[%clk 0:02:06]}  Nxe4 {[%clk 0:02:40]} 18. Bxe4 {[%clk 0:02:06]}  Qxd4+ {[%clk 0:02:39]} 19. Nf2 {[%clk 0:02:05]}  Qxd1 {[%clk 0:02:37]} 20. Rxd1 {[%clk 0:02:04]}  Be6 {[%clk 0:02:37]} 21. h4 {[%clk 0:01:57]}  gxh4 {[%clk 0:02:21]} 22. g4 {[%clk 0:01:55]}  f5 {[%clk 0:02:20]} 23. Rd6 {[%clk 0:01:49]}  Kf7 {[%clk 0:02:18]} 24. Bf3 {[%clk 0:01:36]}  Rfd8 {[%clk 0:02:15]} 25. Rxd8 {[%clk 0:01:31]}  Rxd8 {[%clk 0:02:14]} 26. Be3 {[%clk 0:01:31]}  b6 {[%clk 0:02:07]} 27. Re1 {[%clk 0:00:59]}  Bxb2 {[%clk 0:02:00]} 28. gxf5 {[%clk 0:00:53]}  Nxf5 {[%clk 0:01:56]} 29. Bh5+ {[%clk 0:00:50]}  Ke7 {[%clk 0:01:46]} 30. Ng4 {[%clk 0:00:39]}  Nxe3 {[%clk 0:01:35]} 31. Nxe3 {[%clk 0:00:38]}  Bc3 {[%clk 0:01:24]} 32. Re2 {[%clk 0:00:24]}  Rd2 {[%clk 0:01:20]} 33. a4 {[%clk 0:00:05]}  Rxe2 {[%clk 0:01:17]} 34. Bxe2 {[%clk 0:00:05]}  Bd4 {[%clk 0:01:15]} 35. Kf2 {[%clk 0:00:05]}  h3 {[%clk 0:01:15]} 36. Bf3 {[%clk 0:00:02]}  Bd5 {[%clk 0:01:08]} 0-1


[Site "https://www.chess.com"]